bitfinex/quotes_SOLUSD_20240926
["timestamp","ask_amount","ask_price","bid_price","bid_amount"]
[1727377411535,0.12549,156.82,156.76,12.54186056]
[1727377412746,0.12549,156.81,156.76,12.54186056]
[1727377413041,0.12549,156.81,156.75,23.776884]
[1727377414242,0.12549,156.83,156.76,12.54186056]
[1727377414617,0.25098,156.83,156.76,12.54186056]
[1727377415323,1.59460018,156.82,156.76,12.54186056]
[1727377415747,0.25098,156.81,156.76,12.54186056]
[1727377416042,1.59470146,156.8,156.76,12.54186056]
[1727377416545,0.25098,156.81,156.76,12.54186056]
[1727377417447,1.84563384,156.81,156.76,12.54186056]
[1727377418147,1.84563384,156.81,156.75,36.31874456]
[1727377418455,0.25098,156.82,156.75,36.31874456]
[1727377418753,1.59466753,156.81,156.75,36.31874456]
[1727377419448,1.84564659,156.8,156.71,0.3727381]
[1727377419653,1.84564659,156.8,156.72,12.54186056]
[1727377419947,1.84564659,156.8,156.71,0.3727381]
[1727377419948,0.25098,156.8,156.74,12.54186056]
[1727377420727,15.6069,156.81,156.75,12.54186056]
[1727377421225,15.6069,156.85,156.78,12.54186056]
[1727377421452,15.6069,156.85,156.8,12.54186056]
[1727377421833,15.6069,156.85,156.78,12.54186056]
[1727377422054,1.59435649,156.84,156.78,12.54186056]
[1727377424844,0.12549,156.84,156.78,12.54186056]
[1727377425746,1.71984619,156.84,156.78,12.54186056]
[1727377431261,0.12549,156.84,156.78,12.54186056]
[1727377433474,15.6069,156.85,156.79,23.776884]
[1727377435439,15.6069,156.85,156.78,12.54186056]
[1727377435665,1.71977841,156.84,156.78,12.54186056]
[1727377435969,0.12549,156.84,156.78,12.54186056]
[1727377436849,15.6069,156.85,156.79,12.54186056]
[1727377437050,15.6069,156.85,156.8,36.31874456]
[1727377437869,15.6069,156.85,156.82,12.54186056]
[1727377438065,6.4191,156.86,156.82,12.54186056]
[1727377443083,0.2529491,156.87,156.83,12.54186056]
[1727377443767,0.2529491,156.87,156.8,23.776884]
[1727377444058,0.2529491,156.87,156.8,36.31874456]
[1727377444059,1.59406133,156.86,156.8,36.31874456]
[1727377444868,1.84701002,156.87,156.8,36.31874456]
[1727377445474,0.25098,156.86,156.77,12.54186056]
[1727377445653,1.59426397,156.85,156.78,23.776884]
[1727377445984,0.25098,156.86,156.78,36.31874456]
[1727377446157,0.25098,156.86,156.79,12.54186056]
[1727377447673,0.25098,156.86,156.8,23.776884]
[1727377449870,0.12549,156.84,156.75,15.3373]
[1727377450056,0.12549,156.84,156.78,23.776884]
[1727377451175,1.71982761,156.84,156.78,23.776884]
[1727377453158,6.5128,156.85,156.78,23.776884]
[1727377457191,1.59429242,156.84,156.78,23.776884]
[1727377458173,0.25098,156.83,156.71,16.9774381]
[1727377458379,6.3764,156.83,156.73,12.54186056]
[1727377458671,0.25098,156.82,156.74,12.54186056]
[1727377458875,0.25098,156.82,156.75,12.54186056]
[1727377459083,0.12549,156.82,156.75,12.54186056]
[1727377459288,0.25098,156.83,156.75,12.54186056]
[1727377459491,0.25098,156.83,156.76,23.776884]
[1727377460294,1.59459358,156.82,156.76,23.776884]
[1727377460788,0.12549,156.83,156.77,23.776884]
[1727377460990,13.1736424,156.85,156.83,23.776884]
[1727377460991,6.6608424,156.85,156.83,23.776884]
[1727377461199,0.2529491,156.87,156.83,36.31874456]
[1727377462073,0.2529491,156.87,156.85,12.54186056]
[1727377463087,0.2529491,156.87,156.86,12.54186056]
[1727377465005,0.2529491,156.87,156.84,12.54186056]
[1727377465199,0.2529491,156.87,156.85,23.776884]
[1727377471810,0.2529491,156.87,156.85,36.31874456]
[1727377472483,0.2529491,156.87,156.86,12.54186056]
[1727377472719,0.2529491,156.87,156.86,36.31874456]
[1727377475917,0.2529491,156.87,156.79,23.776884]
[1727377476111,0.2529491,156.87,156.78,20.0]
[1727377476288,0.2529491,156.87,156.82,12.54186056]
[1727377476614,1.84690286,156.87,156.82,12.54186056]
[1727377477097,15.2985,156.86,156.78,4.16063328]
[1727377477300,1.59412445,156.85,156.78,12.54186056]
[1727377477705,1.59412445,156.85,156.76,12.54186056]
[1727377478087,1.59412445,156.85,156.76,16.70534645]
[1727377478289,0.12549,156.84,156.76,12.54186056]
[1727377478608,7.94739372,156.83,156.74,16.70589913]
[1727377478822,6.353,156.83,156.76,12.54186056]
[1727377479818,1.59431869,156.82,156.77,23.776884]
[1727377484928,1.59431869,156.82,156.68,0.080647]
[1727377484929,6.353,156.77,156.68,0.080647]
[1727377485120,1.59507395,156.76,156.68,0.080647]
[1727377485619,6.353,156.77,156.68,0.080647]
[1727377486292,6.353,156.77,156.7,12.54186056]
[1727377486722,6.353,156.77,156.71,24.1496221]
[1727377488209,1.59495007,156.76,156.71,24.1496221]
[1727377492712,6.353,156.77,156.71,24.1496221]
[1727377494628,6.67532818,156.8,156.75,23.776884]
[1727377494943,21.8622,156.81,156.76,12.54186056]
[1727377495110,21.8622,156.81,156.77,36.31874456]
[1727377496127,21.8622,156.81,156.77,23.776884]
[1727377497907,21.8622,156.81,156.77,36.31874456]
[1727377498216,13.04850505,156.86,156.8,23.776884]
[1727377498217,22.2831,156.85,156.8,23.776884]
[1727377499327,22.2831,156.85,156.83,12.54186056]
[1727377499515,22.2831,156.85,156.84,23.776884]
[1727377499832,22.2831,156.85,156.83,23.776884]
[1727377500927,0.2529491,156.87,156.83,23.776884]
[1727377501321,0.2529491,156.87,156.82,23.776884]
[1727377508224,0.2529491,156.87,156.81,23.776884]
[1727377511420,0.2529491,156.87,156.83,23.776884]
[1727377511821,0.2529491,156.87,156.85,23.776884]
[1727377512356,0.2529491,156.87,156.86,43.32619637]
[1727377512636,0.2529491,156.87,156.86,23.776884]
[1727377512841,0.2529491,156.87,156.84,23.776884]
[1727377513015,0.2529491,156.87,156.83,23.776884]
[1727377518629,0.2529491,156.87,156.79,35.31161237]
[1727377520353,0.2529491,156.87,156.8,23.776884]
[1727377520948,0.2529491,156.87,156.81,19.54931237]
[1727377521153,0.2529491,156.87,156.82,23.776884]
[1727377522550,0.2529491,156.87,156.82,36.2868237]
[1727377525950,0.2529491,156.87,156.83,12.5099397]
[1727377526331,0.2529491,156.87,156.84,23.776884]
[1727377528856,0.2529491,156.87,156.83,23.776884]
[1727377533141,16.9052491,156.87,156.83,23.776884]
[1727377533750,16.9052491,156.87,156.82,23.776884]
[1727377534333,16.4052491,156.87,156.82,23.776884]
[1727377534933,17.99912123,156.87,156.82,23.776884]
[1727377536371,16.4052491,156.87,156.82,23.776884]
[1727377536869,14.9052491,156.87,156.82,23.776884]
[1727377540044,14.9052491,156.87,156.83,12.5099397]
[1727377540251,14.9052491,156.87,156.84,23.776884]
[1727377544175,14.9052491,156.87,156.83,23.776884]
[1727377546174,14.9052491,156.87,156.75,22.94650956]
[1727377546175,1.59373124,156.86,156.75,21.32865796]
[1727377546386,6.3759,156.84,156.76,16.68880193]
[1727377546669,6.3759,156.84,156.75,0.2529491]
[1727377546670,17.59148709,156.83,156.75,0.2529491]
[1727377546875,17.59148709,156.83,156.76,4.18027851]
[1727377547051,17.59148709,156.83,156.77,12.5099397]
[1727377547654,15.9971,156.83,156.79,12.5099397]
[1727377547862,15.9971,156.83,156.8,23.776884]
[1727377549969,6.4637,156.84,156.8,36.2868237]
[1727377550365,6.4637,156.84,156.8,23.776884]
[1727377550955,8.05767969,156.84,156.8,23.776884]
[1727377551174,6.4637,156.84,156.8,23.776884]
[1727377554164,15.9971,156.86,156.8,36.2868237]
[1727377554370,15.9971,156.86,156.82,23.776884]
[1727377554575,6.4637,156.88,156.84,23.776884]
[1727377558083,6.4637,156.88,156.84,36.2868237]
[1727377558766,6.4637,156.88,156.84,23.776884]
[1727377559093,6.4637,156.88,156.83,23.776884]
[1727377560083,1.59372952,156.87,156.77,15.2508]
[1727377560290,1.59372952,156.87,156.79,12.5099397]
[1727377560578,1.59372952,156.87,156.75,0.2529491]
[1727377560579,0.25098,156.87,156.8,12.5099397]
[1727377561388,6.4637,156.88,156.82,23.776884]
[1727377561565,6.4637,156.88,156.82,36.2868237]
[1727377564771,6.4637,156.88,156.82,23.776884]
[1727377564966,7.96856755,156.87,156.82,23.776884]
[1727377565180,7.96856755,156.87,156.81,23.776884]
[1727377565571,1.59386755,156.87,156.81,23.776884]
[1727377567192,12.8381,156.88,156.81,23.776884]
[1727377568190,1.59395157,156.87,156.81,23.776884]
[1727377568594,6.3767,156.82,156.75,0.2529491]
[1727377568898,6.62818,156.81,156.75,0.2529491]
[1727377569073,1.59465191,156.8,156.75,0.2529491]
[1727377570094,0.25098,156.81,156.75,0.2529491]
[1727377570265,0.12549,156.81,156.75,0.2529491]
[1727377570463,1.72007778,156.81,156.75,0.2529491]
[1727377570666,0.12549,156.8,156.75,0.2529491]
[1727377572876,0.12549,156.79,156.75,0.2529491]
[1727377573089,8.09834101,156.79,156.75,0.2529491]
[1727377573600,1.72034101,156.79,156.75,0.2529491]
[1727377577282,0.12549,156.79,156.75,0.2529491]
[1727377577482,1.59483268,156.78,156.75,0.2529491]
[1727377578509,1.7203228,156.79,156.75,0.2529491]
[1727377586195,0.12549,156.79,156.75,0.2529491]
[1727377589790,1.72028024,156.79,156.75,0.2529491]
[1727377592908,12.73759,156.78,156.75,0.2529491]
[1727377593111,1.5949852,156.77,156.75,0.2529491]
[1727377595628,6.35929,156.78,156.75,0.2529491]
[1727377596322,6.2338,156.78,156.75,0.2529491]
[1727377598695,1.59491039,156.77,156.75,0.2529491]
[1727377599918,6.2338,156.78,156.75,0.2529491]
[1727377604397,6.50459,156.76,156.75,0.2529491]
[1727377604621,6.63008,156.76,156.75,0.2529491]
[1727377606813,8.22535119,156.76,156.75,0.2529491]
[1727377607033,28.22535119,156.76,156.75,0.2529491]
[1727377613411,26.63008,156.76,156.75,0.2529491]
[1727377615450,0.25098,156.76,156.75,0.2529491]
[1727377615817,8.22535167,156.76,156.75,0.2529491]
[1727377616334,6.63008,156.76,156.75,0.2529491]
[1727377617011,8.22535352,156.76,156.75,0.2529491]
[1727377617211,0.25098,156.75,156.71,0.3727381]
[1727377617438,0.25098,156.73,156.71,0.3727381]
[1727377617639,1.72103902,156.72,156.71,0.3727381]
[1727377618914,1.84652902,156.72,156.71,0.3727381]
[1727377619216,8.22732902,156.72,156.71,0.3727381]
[1727377619416,6.63178,156.72,156.71,0.3727381]
[1727377619612,8.22742232,156.72,156.71,0.3727381]
[1727377619919,1.84662232,156.72,156.71,0.3727381]
[1727377620133,0.12549,156.73,156.71,0.3727381]
[1727377620617,0.25098,156.74,156.71,0.3727381]
[1727377620821,6.66435952,156.76,156.71,0.3727381]
[1727377621336,15.3,156.77,156.71,0.3727381]
[1727377621734,21.6788,156.77,156.71,0.3727381]
[1727377622121,0.25098,156.76,156.71,0.3727381]
[1727377622933,6.378,156.79,156.71,36.6595618]
[1727377623138,20.0,156.79,156.73,23.776884]
[1727377624150,22.8949,156.81,156.73,23.776884]
[1727377624313,6.3772,156.81,156.73,36.2868237]
[1727377625026,1.59479809,156.8,156.73,36.2868237]
[1727377625224,6.3776,156.8,156.73,36.2868237]
[1727377625425,6.3776,156.8,156.73,23.776884]
[1727377625629,1.5948027,156.79,156.73,23.776884]
[1727377627346,0.25098,156.78,156.73,23.776884]
[1727377627545,1.59495609,156.77,156.73,23.776884]
[1727377628241,1.59495609,156.77,156.72,23.776884]
[1727377628729,1.84590723,156.78,156.72,23.776884]
[1727377631127,1.84590723,156.78,156.72,12.5099397]
[1727377631341,1.84590723,156.78,156.73,23.776884]
[1727377632332,8.22430723,156.78,156.72,23.776884]
[1727377633324,0.25098,156.78,156.72,23.776884]
[1727377633733,0.25098,156.78,156.73,23.776884]
[1727377633929,0.12549,156.78,156.73,23.776884]
[1727377634136,0.25098,156.79,156.73,36.2868237]
[1727377634643,20.0,156.82,156.77,23.776884]
[1727377635323,6.65784392,156.83,156.77,23.776884]
[1727377635523,6.3751,156.86,156.79,23.776884]
[1727377635727,6.3751,156.86,156.76,21.9459]
[1727377635728,7.73874985,156.87,156.81,23.776884]
[1727377636021,0.2529491,156.87,156.81,23.776884]
[1727377636926,1.59415814,156.86,156.81,23.776884]
[1727377637123,0.25098,156.84,156.76,21.9459]
[1727377637447,1.59444002,156.83,156.77,23.776884]
[1727377643342,0.25098,156.84,156.77,36.2868237]
[1727377643560,26.6279491,156.87,156.8,36.2868237]
[1727377643735,26.6279491,156.87,156.83,23.776884]
[1727377643736,0.2529491,156.87,156.83,23.776884]
[1727377644629,0.2529491,156.87,156.83,36.2868237]
[1727377645036,0.2529491,156.87,156.84,12.5099397]
[1727377645335,0.2529491,156.87,156.85,23.776884]
[1727377646341,0.2529491,156.87,156.86,12.5099397]
[1727377646535,0.2529491,156.87,156.86,36.2868237]
[1727377648246,0.2529491,156.87,156.86,23.776884]
[1727377648459,0.2529491,156.87,156.85,23.776884]
[1727377648651,0.2529491,156.87,156.86,12.5099397]
[1727377648963,0.2529491,156.87,156.86,36.2868237]
[1727377651438,0.2529491,156.87,156.85,23.776884]
[1727377651643,0.2529491,156.87,156.82,22.0657]
[1727377652165,0.2529491,156.87,156.82,28.2431397]
[1727377653240,0.2529491,156.87,156.83,23.776884]
[1727377657478,6.6276491,156.87,156.83,23.776884]
[1727377657638,1.59405963,156.86,156.83,23.776884]
[1727377658560,0.25098,156.86,156.83,23.776884]
[1727377658765,0.2529491,156.87,156.83,23.776884]
[1727377661471,1.84697865,156.87,156.83,23.776884]
[1727377662470,0.2529491,156.87,156.83,23.776884]
[1727377664567,1.84697829,156.87,156.83,23.776884]
[1727377665675,0.25098,156.86,156.78,16.3143]
[1727377665967,0.25098,156.86,156.79,23.776884]
[1727377665968,6.62618,156.86,156.79,23.776884]
[1727377666262,6.62618,156.86,156.79,36.2868237]
[1727377666650,1.59422361,156.85,156.79,36.2868237]
[1727377666851,6.62618,156.86,156.79,36.2868237]
[1727377667061,1.5942246,156.85,156.79,36.2868237]
[1727377668166,6.62618,156.86,156.79,36.2868237]
[1727377668860,1.59422153,156.85,156.79,36.2868237]
[1727377669045,1.59422153,156.85,156.79,23.776884]
[1727377669752,0.25098,156.84,156.79,23.776884]
[1727377669957,1.59440181,156.83,156.78,23.776884]
[1727377670275,7.97070181,156.83,156.78,23.776884]
[1727377670655,1.59440181,156.83,156.78,23.776884]
[1727377672356,6.62698,156.84,156.78,23.776884]
[1727377672784,0.25098,156.82,156.78,23.776884]
[1727377673085,1.59448726,156.81,156.78,23.776884]
[1727377673377,0.25098,156.82,156.78,23.776884]
[1727377673586,1.59448666,156.81,156.78,23.776884]
[1727377674883,1.71997554,156.82,156.78,23.776884]
[1727377675562,0.12549,156.81,156.71,6.5130381]
[1727377675761,8.09804243,156.8,156.71,6.5130381]
[1727377675960,1.72024243,156.8,156.72,12.5099397]
[1727377676661,1.59475243,156.8,156.72,12.5099397]
[1727377676856,20.0,156.86,156.77,23.776884]
[1727377676857,0.12549,156.82,156.77,23.776884]
[1727377677368,0.25098,156.82,156.77,23.776884]
[1727377681784,1.84546251,156.82,156.77,23.776884]
[1727377686090,21.6113,156.85,156.77,23.776884]
[1727377686264,21.6113,156.85,156.79,23.776884]
[1727377686472,21.6113,156.85,156.8,12.5099397]
[1727377686673,15.4898,156.85,156.81,23.776884]
[1727377686868,6.6277491,156.87,156.81,23.776884]
[1727377687794,1.59411838,156.86,156.81,23.776884]
[1727377689880,0.3784391,156.87,156.81,23.776884]
[1727377690799,1.59405576,156.86,156.81,23.776884]
[1727377691504,6.62658,156.85,156.81,23.776884]
[1727377691801,1.59422392,156.84,156.81,23.776884]
[1727377692299,7.97022392,156.84,156.76,15.5888]
[1727377692504,7.97022392,156.84,156.77,23.776884]
[1727377692681,1.59422392,156.84,156.77,23.776884]
[1727377693275,7.97022392,156.84,156.77,23.776884]
[1727377693906,6.3768,156.82,156.74,12.5099397]
[1727377694084,1.59455236,156.81,156.74,12.5099397]
[1727377695803,1.59455236,156.81,156.75,23.776884]
[1727377698093,12.83308,156.83,156.76,12.5099397]
[1727377698300,6.45678,156.83,156.77,23.776884]
[1727377699101,6.33129,156.83,156.77,23.776884]
[1727377699305,15.1346,156.84,156.79,23.776884]
[1727377701615,1.59417569,156.83,156.79,23.776884]
[1727377703217,7.97047569,156.83,156.79,23.776884]
[1727377703393,6.3776,156.8,156.72,6.5802]
[1727377703595,14.54999669,156.79,156.71,0.3727381]
[1727377703894,0.12549,156.82,156.75,12.5099397]
[1727377704991,1.72001314,156.82,156.76,23.776884]
[1727377705196,0.12549,156.82,156.76,23.776884]
[1727377705504,1.72001098,156.82,156.76,23.776884]
[1727377706903,0.12549,156.82,156.76,23.776884]
[1727377707510,12.9538,156.83,156.76,23.776884]
[1727377707685,1.59451995,156.82,156.76,23.776884]
[1727377708103,7.97131995,156.82,156.76,23.776884]
[1727377708412,6.3768,156.82,156.76,23.776884]
[1727377708793,1.59452404,156.81,156.76,23.776884]
[1727377709703,1.59449372,156.82,156.76,23.776884]
[1727377710511,7.97129372,156.82,156.76,23.776884]
[1727377711484,6.62818,156.81,156.76,23.776884]
[1727377711690,1.59469038,156.8,156.76,23.776884]
[1727377712634,0.12549,156.79,156.71,0.3727381]
[1727377712791,1.59481327,156.78,156.72,12.5099397]
[1727377713514,1.59481327,156.78,156.71,0.3727381]
[1727377713515,24.25761327,156.78,156.71,0.3727381]
[1727377714016,0.25098,156.77,156.71,0.3727381]
[1727377714518,28.8874,156.78,156.71,0.3727381]
[1727377717892,1.59497601,156.77,156.71,0.3727381]
[1727377718191,28.8874,156.78,156.72,23.776884]
[1727377719521,1.59497613,156.77,156.72,23.776884]
[1727377721420,0.25098,156.77,156.72,23.776884]
[1727377721906,1.84598671,156.77,156.72,23.776884]
[1727377724928,0.25098,156.77,156.72,23.776884]
[1727377727427,1.84598703,156.77,156.72,23.776884]
[1727377728017,0.25098,156.77,156.72,23.776884]
[1727377731734,1.84598638,156.77,156.72,23.776884]
[1727377732734,1.84598638,156.77,156.71,24.1496221]
[1727377733634,0.25098,156.77,156.71,24.1496221]
[1727377734437,1.84598609,156.77,156.71,24.1496221]
[1727377734732,1.84598609,156.77,156.71,0.3727381]
[1727377735118,0.25098,156.77,156.71,0.3727381]
[1727377737036,1.84598527,156.77,156.71,0.3727381]
[1727377738655,0.25098,156.77,156.71,0.3727381]
[1727377739936,22.509,156.78,156.71,12.8826778]
[1727377740153,22.509,156.78,156.72,23.776884]
[1727377740442,6.66743504,156.81,156.78,23.776884]
[1727377740622,15.6436,156.84,156.8,23.776884]
[1727377740819,15.6436,156.84,156.82,23.776884]
[1727377742040,15.6436,156.84,156.74,16.2616]
[1727377742331,1.5940794,156.83,156.77,23.776884]
[1727377743935,0.12549,156.8,156.73,12.5099397]
[1727377744129,1.72018235,156.8,156.73,12.5099397]
[1727377744531,0.12549,156.8,156.73,12.5099397]
[1727377744721,0.25098,156.8,156.73,12.5099397]
[1727377745433,0.25098,156.8,156.74,23.776884]
[1727377747660,6.5264,156.81,156.74,23.776884]
[1727377750631,1.59465917,156.8,156.74,23.776884]
[1727377751032,6.5264,156.81,156.74,23.776884]
[1727377752628,6.5264,156.81,156.75,12.5099397]
[1727377752948,15.6436,156.84,156.78,12.5099397]
[1727377753139,15.6436,156.84,156.79,23.776884]
[1727377755039,6.5264,156.85,156.81,23.776884]
[1727377755551,0.2529491,156.87,156.81,23.776884]
[1727377755851,0.2529491,156.87,156.85,23.776884]
[1727377757669,1.84663813,156.87,156.81,23.776884]
[1727377758567,0.2529491,156.87,156.81,23.776884]
[1727377758744,1.59398726,156.86,156.81,23.776884]
[1727377759250,15.68788,156.85,156.75,22.94345441]
[1727377759455,1.59425566,156.84,156.76,12.5099397]
[1727377759663,0.12549,156.83,156.76,12.5099397]
[1727377759953,0.25098,156.83,156.76,12.5099397]
[1727377760157,1.5944569,156.82,156.71,22.24559251]
[1727377760343,1.5944569,156.82,156.74,12.5099397]
[1727377760344,12.6813,156.82,156.74,12.5099397]
[1727377760530,6.3045,156.82,156.74,12.5099397]
[1727377761767,6.3045,156.82,156.75,23.776884]
[1727377763054,0.12549,156.81,156.75,23.776884]
[1727377765754,1.72005113,156.81,156.75,23.776884]
[1727377765954,0.25098,156.81,156.75,23.776884]
[1727377766983,6.3045,156.82,156.75,23.776884]
[1727377767145,1.59451138,156.81,156.75,23.776884]
[1727377768259,0.12549,156.8,156.75,23.776884]
[1727377768964,0.25098,156.81,156.75,23.776884]
[1727377774971,6.3045,156.82,156.75,23.776884]
[1727377775568,12.6813,156.82,156.75,23.776884]
[1727377776051,7.9718953,156.81,156.75,23.776884]
[1727377776249,0.25098,156.81,156.75,23.776884]
[1727377777070,0.12549,156.81,156.75,23.776884]
[1727377777750,6.3045,156.82,156.77,23.776884]
[1727377778150,15.4369,156.85,156.79,23.776884]
[1727377782575,15.4369,156.85,156.81,12.51351856]
[1727377782755,15.4369,156.85,156.82,23.776884]
[1727377783775,15.4369,156.85,156.83,12.51351856]
[1727377784272,15.4369,156.85,156.84,23.776884]
[1727377788359,15.4369,156.85,156.82,23.776884]
[1727377794265,17.03085489,156.85,156.82,23.776884]
[1727377794787,15.4369,156.85,156.82,23.776884]
[1727377795279,15.4369,156.85,156.83,12.51351856]
[1727377795589,0.12549,156.88,156.83,12.51351856]
[1727377801176,15.9791,156.89,156.86,23.776884]
[1727377801469,6.3088,156.9,156.86,23.776884]
[1727377801783,0.2529491,156.92,156.86,23.776884]
[1727377807070,1.84631481,156.92,156.86,23.776884]
[1727377808174,0.2529491,156.92,156.86,23.776884]
[1727377808700,0.2529491,156.92,156.86,38.979184]
[1727377808903,0.2529491,156.92,156.91,12.51351856]
[1727377809198,0.2529491,156.92,156.91,36.29040256]
[1727377810797,0.2529491,156.92,156.9,23.776884]
[1727377815006,0.2529491,156.92,156.91,12.51351856]
[1727377815310,0.2529491,156.92,156.91,36.29040256]
[1727377817005,0.2529491,156.92,156.91,23.776884]
[1727377817191,0.2529491,156.92,156.9,23.776884]
[1727377818587,0.2529491,156.92,156.86,15.2023]
[1727377818885,0.12549,156.91,156.84,12.51351856]
[1727377819081,1.71899188,156.91,156.84,12.51351856]
[1727377819904,0.12549,156.91,156.84,12.51351856]
[1727377820415,0.12549,156.91,156.86,12.51351856]
[1727377820596,22.5525491,156.92,156.87,23.776884]
[1727377821010,1.59345127,156.91,156.87,23.776884]
[1727377821410,22.5525491,156.92,156.87,23.776884]
[1727377822200,1.59344932,156.91,156.87,23.776884]
[1727377822998,22.5525491,156.92,156.87,23.776884]
[1727377823210,24.14599925,156.92,156.87,23.776884]
[1727377823913,0.25098,156.91,156.87,23.776884]
[1727377824096,0.12549,156.89,156.81,23.776884]
[1727377824304,1.59377802,156.88,156.81,23.776884]
[1727377825004,1.59377802,156.88,156.81,36.29040256]
[1727377825229,0.12549,156.89,156.81,36.29040256]
[1727377826321,0.12549,156.9,156.83,12.51351856]
[1727377826912,0.12549,156.9,156.84,23.776884]
[1727377827719,1.7192264,156.9,156.84,23.776884]
[1727377828505,8.0927264,156.9,156.84,23.776884]
[1727377828711,0.12549,156.89,156.84,23.776884]
[1727377829511,0.12549,156.88,156.84,23.776884]
[1727377829714,1.71932968,156.88,156.84,23.776884]
[1727377830401,0.12549,156.88,156.84,23.776884]
[1727377831509,1.71932685,156.88,156.84,23.776884]
[1727377832424,0.12549,156.88,156.84,23.776884]
[1727377833932,1.7193278,156.88,156.84,23.776884]
[1727377834315,0.12549,156.88,156.84,23.776884]
[1727377834831,1.71932598,156.88,156.84,23.776884]
[1727377835716,8.09362598,156.88,156.84,23.776884]
[1727377837638,0.12549,156.88,156.84,23.776884]
[1727377839532,1.71936802,156.88,156.84,23.776884]
[1727377840747,0.12549,156.88,156.84,23.776884]
[1727377841616,6.3747,156.87,156.78,15.2594]
[1727377841938,23.46016138,156.86,156.77,12.51351856]
[1727377842118,29.83546138,156.86,156.77,12.51351856]
[1727377842530,6.50109,156.85,156.76,4.16519017]
[1727377842747,6.50199,156.83,156.75,16.93165783]
[1727377842935,0.12549,156.82,156.75,12.76646766]
[1727377843115,6.50109,156.85,156.75,12.76646766]
[1727377843446,0.12549,156.85,156.77,12.51351856]
[1727377843740,0.12549,156.85,156.79,12.51351856]
[1727377844125,0.12549,156.85,156.8,23.776884]
[1727377844512,21.7406,156.86,156.81,12.51351856]
[1727377844708,21.7406,156.86,156.82,23.776884]
[1727377845317,21.7406,156.9,156.83,12.51351856]
[1727377845529,21.7406,156.9,156.84,23.776884]
[1727377846326,1.59374485,156.89,156.84,23.776884]
[1727377846628,28.1141,156.9,156.84,23.776884]
[1727377846835,21.7406,156.9,156.84,23.776884]
[1727377847046,0.12549,156.89,156.84,23.776884]
[1727377847765,21.7406,156.9,156.85,12.51351856]
[1727377847942,6.66308199,156.91,156.88,23.776884]
[1727377848229,1.84633768,156.92,156.88,23.776884]
[1727377848636,1.84633768,156.92,156.87,23.776884]
[1727377848936,8.21903768,156.92,156.87,23.776884]
[1727377849833,6.6256491,156.92,156.87,23.776884]
[1727377850027,0.12549,156.91,156.87,23.776884]
[1727377850334,1.71906301,156.91,156.87,23.776884]
[1727377851652,0.12549,156.91,156.87,23.776884]
[1727377852151,1.71907264,156.91,156.87,23.776884]
[1727377853344,0.12549,156.91,156.87,23.776884]
[1727377853839,1.71902748,156.91,156.87,23.776884]
[1727377854052,1.71904003,156.91,156.87,23.776884]
[1727377854958,0.12549,156.91,156.87,23.776884]
[1727377861738,0.12549,156.89,156.81,6.77285441]
[1727377861943,0.12549,156.89,156.84,12.51351856]
[1727377862455,6.3731,156.91,156.86,12.51351856]
[1727377862456,0.25098,156.91,156.86,12.51351856]
[1727377862645,0.12549,156.91,156.86,12.51351856]
[1727377863234,0.12549,156.91,156.87,23.776884]
[1727377863950,0.2529491,156.92,156.88,12.51351856]
[1727377864138,0.2529491,156.92,156.89,23.776884]
[1727377865954,0.2529491,156.92,156.8,15.229]
[1727377866249,0.12549,156.89,156.83,12.51351856]
[1727377866830,0.25098,156.9,156.83,12.51351856]
[1727377867256,0.25098,156.91,156.83,12.51351856]
[1727377868143,6.62408,156.91,156.84,23.776884]
[1727377868659,0.12549,156.89,156.84,23.776884]
[1727377868834,1.59375905,156.88,156.84,23.776884]
[1727377869035,0.12549,156.89,156.84,23.776884]
[1727377869556,6.6258491,156.92,156.84,23.776884]
[1727377869736,1.5935284,156.91,156.84,23.776884]
[1727377870654,0.2529491,156.92,156.87,12.51351856]
[1727377870859,0.2529491,156.92,156.86,23.776884]
[1727377871160,0.2529491,156.92,156.9,23.776884]
[1727377872434,0.2529491,156.92,156.8,15.229]
[1727377872435,0.12549,156.91,156.8,15.229]
[1727377872644,0.12549,156.87,156.79,12.51351856]
[1727377872854,1.71944273,156.87,156.79,12.51351856]
[1727377873070,6.4474,156.88,156.81,12.51351856]
[1727377873231,6.4474,156.88,156.83,12.51351856]